bitfinex/quotes_ETHUSD_20240530
["timestamp","ask_amount","ask_price","bid_price","bid_amount"]
[1717048994536,1.29789222,3782.2,3781.7,1.58656]
[1717048994755,1.29789222,3782.2,3781.8,0.5462856]
[1717048994906,1.29789222,3782.2,3781.8,0.06372629]
[1717048995106,1.29789222,3782.2,3781.7,1.58656]
[1717048995382,1.29789222,3782.2,3781.8,0.06372629]
[1717048995507,0.57218778,3782.6,3781.8,0.06372629]
[1717048995508,1.29789222,3782.1,3781.8,0.06372629]
[1717048995709,1.29789222,3782.1,3781.7,1.58656]
[1717048996039,1.29789222,3782.1,3781.8,0.06363179]
[1717048996543,1.29789222,3782.1,3781.9,0.06363179]
[1717048996712,1.29789222,3782.1,3781.7,1.58656]
[1717048996907,1.29789222,3782.1,3781.8,0.06363179]
[1717048997254,1.29789222,3782.1,3781.7,1.58656]
[1717048997459,1.29789222,3782.1,3781.9,0.06363179]
[1717048997762,1.29789222,3782.1,3781.7,1.58656]
[1717048998062,1.29789222,3782.1,3781.7,1.745216]
[1717048998352,1.29789222,3782.1,3781.8,0.06168981]
[1717048998511,1.29789222,3782.1,3781.7,1.58656]
[1717048998912,1.29789222,3782.1,3781.8,0.06168981]
[1717048999125,1.29789222,3782.1,3781.7,1.58656]
[1717048999649,1.29789222,3782.1,3781.8,0.06168981]
[1717048999823,1.29789222,3782.1,3781.7,1.58656]
[1717049000150,1.29789222,3782.1,3781.8,0.06168981]
[1717049000354,1.29789222,3782.1,3781.7,1.58656]
[1717049000643,1.29789222,3782.1,3781.8,0.06168981]
[1717049001153,1.29789222,3782.1,3781.7,1.745216]
[1717049001673,1.29789222,3782.1,3781.8,0.06168981]
[1717049002050,1.29789222,3782.1,3781.7,1.745216]
[1717049002423,1.29789222,3782.1,3781.8,0.06168981]
[1717049002621,1.29789222,3782.1,3781.7,1.745216]
[1717049002837,0.57224744,3782.6,3782.0,2.38544]
[1717049003052,1.29789222,3782.5,3782.0,2.38544]
[1717049003360,1.29789222,3782.5,3782.1,0.06165709]
[1717049003580,1.29789222,3782.5,3782.0,2.38544]
[1717049003741,1.29789222,3782.5,3782.2,0.06165709]
[1717049004059,1.29789222,3782.5,3782.0,2.38544]
[1717049004270,1.29789222,3782.5,3782.3,0.06165709]
[1717049004426,1.29789222,3782.5,3782.0,2.38544]
[1717049004624,1.29789222,3782.5,3782.4,0.06165709]
[1717049004857,1.29789222,3782.5,3782.0,2.38544]
[1717049005049,1.29789222,3782.5,3782.4,0.06165709]
[1717049005416,1.29789222,3782.5,3782.0,2.38544]
[1717049005616,1.29789222,3782.5,3782.4,0.06165709]
[1717049006039,1.29789222,3782.5,3782.0,2.38544]
[1717049006263,1.29789222,3782.5,3782.4,0.06165709]
[1717049006468,1.29789222,3782.5,3782.0,2.38544]
[1717049006970,0.57216129,3783.0,3782.2,0.799]
[1717049007142,1.84789222,3782.9,3782.2,0.799]
[1717049007670,1.84789222,3782.9,3782.0,2.66590866]
[1717049007819,2.42005351,3782.9,3782.0,2.66590866]
[1717049008022,2.42005351,3782.9,3782.1,0.06165709]
[1717049008446,3.70496886,3782.9,3782.1,0.06165709]
[1717049008638,0.57216129,3782.8,3782.1,0.06165709]
[1717049008838,1.29789222,3782.7,3782.1,0.06165709]
[1717049011332,0.55,3782.6,3782.1,0.06165709]
[1717049011560,3.67049222,3782.5,3782.0,1.58644]
[1717049011874,3.67049222,3782.5,3782.1,0.06136268]
[1717049012027,0.57216129,3782.4,3782.1,0.06136268]
[1717049012229,1.29789222,3782.3,3781.5,4.58665]
[1717049012467,1.29789222,3782.3,3782.2,0.06136268]
[1717049012666,1.84789222,3782.3,3781.5,1.58665]
[1717049012866,1.29789222,3782.3,3782.2,0.06138812]
[1717049013106,1.84789222,3782.3,3781.5,1.58665]
[1717049013250,1.29789222,3782.3,3782.2,0.06138812]
[1717049013598,2.40705757,3782.3,3782.2,0.06138812]
[1717049013899,1.29789222,3782.3,3781.6,0.799]
[1717049014381,1.29789222,3782.3,3781.7,0.06138812]
[1717049015046,2.2998,3782.2,3781.7,0.06138812]
[1717049015366,1.29789222,3782.1,3781.8,0.06138812]
[1717049015681,1.87005351,3782.1,3781.5,2.38565]
[1717049015881,1.87005351,3782.1,3781.9,0.06138812]
[1717049016106,1.87005351,3782.1,3781.5,2.38565]
[1717049016330,1.87005351,3782.1,3782.0,0.06138812]
[1717049016591,2.83703886,3782.1,3782.0,0.06138812]
[1717049016746,2.83703886,3782.1,3781.2,0.799]
[1717049016943,0.799,3781.9,3781.3,0.06138812]
[1717049017277,0.57216129,3782.0,3781.8,0.799]
[1717049017443,0.57216129,3782.5,3781.8,3.2051]
[1717049017790,0.57216129,3782.5,3782.2,0.799]
[1717049017995,0.57216129,3782.5,3782.0,0.799]
[1717049018141,0.57216129,3783.0,3782.0,0.799]
[1717049018341,1.29789222,3782.9,3782.0,0.799]
[1717049018577,1.29789222,3782.9,3782.1,0.06152987]
[1717049018778,1.29789222,3782.9,3782.0,0.799]
[1717049018779,0.55,3782.8,3782.0,0.799]
[1717049018982,1.29789222,3782.7,3782.0,0.799]
[1717049019186,1.29789222,3782.7,3782.1,0.06152987]
[1717049020063,1.29789222,3782.7,3782.0,0.799]
[1717049020394,1.29789222,3782.7,3781.9,1.90701]
[1717049020594,1.29789222,3782.7,3782.1,0.06148262]
[1717049020891,1.29789222,3782.7,3782.0,0.799]
[1717049021093,1.29789222,3782.7,3782.2,0.06148262]
[1717049021389,1.29789222,3782.7,3782.3,0.06148262]
[1717049021594,1.29789222,3782.7,3782.0,1.310211]
[1717049021893,1.29789222,3782.7,3782.4,0.06148262]
[1717049022195,1.29789222,3782.7,3782.5,0.06148262]
[1717049022551,1.29789222,3782.7,3782.0,1.310211]
[1717049022751,1.29789222,3782.7,3782.1,0.06148262]
[1717049024388,1.29789222,3782.7,3782.1,0.62996298]
[1717049026401,1.29789222,3782.7,3782.1,1.36748036]
[1717049026607,1.29789222,3782.7,3782.1,0.56848036]
[1717049026750,1.29789222,3782.7,3782.2,0.06148262]
[1717049028788,1.29789222,3782.7,3782.0,0.799]
[1717049028989,1.29789222,3782.7,3782.1,0.06129727]
[1717049029611,1.29789222,3782.7,3782.0,0.799]
[1717049029755,1.29789222,3782.7,3782.2,0.06129727]
[1717049029951,1.29789222,3782.7,3782.1,1.58638]
[1717049030203,1.29789222,3782.7,3782.2,0.06129727]
[1717049034633,1.29789222,3782.6,3782.2,0.06129727]
[1717049039731,1.29789222,3782.6,3782.1,1.58638]
[1717049039732,2.9201,3782.5,3782.1,1.58638]
[1717049040083,1.87004642,3782.4,3782.1,1.58638]
[1717049040443,1.87004642,3782.4,3782.2,0.06160982]
[1717049040749,1.87004642,3782.4,3782.1,1.58638]
[1717049040930,1.87004642,3782.4,3782.2,0.06160982]
[1717049041257,1.87004642,3782.4,3781.8,0.799]
[1717049041668,1.87004642,3782.4,3781.9,0.06160982]
[1717049042172,1.87004642,3782.4,3782.0,0.06160982]
[1717049042319,1.87004642,3782.4,3781.8,0.799]
[1717049042521,1.87004642,3782.4,3781.9,0.06160982]
[1717049042870,1.87004642,3782.4,3781.8,0.799]
[1717049043053,1.87004642,3782.4,3782.0,0.06160982]
[1717049043371,1.87004642,3782.4,3782.1,0.06160982]
[1717049043567,1.87004642,3782.4,3781.8,0.799]
[1717049043868,1.87004642,3782.4,3781.9,0.06160982]
[1717049044074,1.87009035,3782.4,3781.9,0.06160982]
[1717049044235,2.34910939,3782.4,3781.6,1.58661]
[1717049044428,0.55,3782.3,3782.0,0.06160982]
[1717049044631,1.29789222,3782.2,3781.6,1.58661]
[1717049044936,0.55,3782.1,3781.6,1.58661]
[1717049045149,1.29789222,3782.0,3781.6,1.58661]
[1717049046260,1.29789222,3782.0,3781.1,1.58682]
[1717049046261,0.799,3781.9,3781.1,1.58682]
[1717049046455,1.84789222,3781.8,3781.1,1.58682]
[1717049046659,2.42011812,3781.8,3781.1,1.58682]
[1717049047297,1.84789222,3781.8,3781.1,1.58682]
[1717049047712,2.3067,3781.6,3780.5,1.58708]
[1717049047898,1.84789222,3781.5,3780.7,0.799]
[1717049048096,2.42011812,3781.5,3780.7,0.799]
[1717049048429,2.42011812,3781.5,3780.5,1.58708]
[1717049048430,2.42011812,3781.5,3780.8,0.799]
[1717049048969,1.87011812,3781.5,3781.0,0.799]
[1717049049170,1.29789222,3781.5,3781.0,0.799]
[1717049050270,1.29789222,3781.4,3779.8,2.3055]
[1717049050468,7.38,3782.0,3779.8,2.3055]
[1717049050469,2.2511,3781.0,3780.0,1.58727]
[1717049050673,1.29789222,3780.3,3779.4,1.58755]
[1717049050867,2.2511,3780.2,3779.4,2.38655]
[1717049051110,1.29789222,3780.1,3779.4,2.38655]
[1717049051670,0.55,3780.0,3779.4,2.38655]
[1717049051868,1.29789222,3779.9,3779.4,2.38655]
[1717049052212,0.55,3779.8,3779.5,0.06007437]
[1717049052536,1.29789222,3779.7,3779.5,0.06007437]
[1717049053297,3.0,3781.2,3779.6,2.38646]
[1717049053298,8.179,3780.7,3779.6,2.38646]
[1717049053506,6.5131788,3780.6,3779.6,2.38646]
[1717049053810,1.29789222,3780.3,3779.6,1.58746]
[1717049054003,0.55,3780.2,3779.6,1.58746]
[1717049054175,1.29789222,3780.1,3779.8,1.58737]
[1717049055101,7.38,3780.7,3779.8,1.58737]
[1717049055299,1.29789222,3780.6,3780.3,1.58716]
[1717049055668,1.29789222,3780.6,3780.4,0.06047388]
[1717049055872,1.29789222,3780.6,3780.3,1.58716]
[1717049056913,0.55,3780.5,3780.3,1.58716]
[1717049057115,1.29789222,3780.4,3780.3,1.58716]
[1717049057316,1.84789222,3780.4,3780.3,1.58716]
[1717049059380,1.29789222,3780.4,3780.3,1.58716]
[1717049059679,1.29789222,3780.4,3780.3,1.64754306]
[1717049062813,7.38,3781.1,3780.3,1.64754306]
[1717049063021,3.49772222,3781.0,3780.3,1.58716]
[1717049063195,3.49772222,3781.0,3780.5,1.58705]
[1717049063920,1.29789222,3781.0,3780.4,2.2773]
[1717049064121,0.57240676,3781.4,3780.9,0.799]
[1717049064325,1.29789222,3781.3,3781.2,1.58679]
[1717049064529,1.29789222,3781.3,3781.2,2.38579]
[1717049064691,1.29789222,3781.3,3781.2,1.64748539]
[1717049070843,0.57232779,3781.8,3781.2,1.64748539]
[1717049071008,1.29789222,3781.7,3781.2,1.64748539]
[1717049071202,1.29789222,3781.7,3781.4,1.5867]
[1717049071609,1.29789222,3781.7,3781.5,0.799]
[1717049072049,7.38,3781.9,3781.6,1.58662]
[1717049072253,1.29789222,3781.8,3781.6,1.58662]
[1717049072442,1.29789222,3781.8,3781.7,0.06040847]
[1717049072827,1.29789222,3781.8,3781.6,1.58662]
[1717049073144,1.29789222,3781.8,3781.7,0.06040847]
[1717049073337,1.29789222,3781.8,3781.7,0.85940847]
[1717049073646,1.29789222,3781.8,3781.7,0.799]
[1717049074464,1.29789222,3781.8,3781.6,1.58662]
[1717049075957,1.29789222,3781.8,3781.6,2.38562]
[1717049076252,1.29789222,3781.8,3781.7,0.05980574]
[1717049076751,1.29789222,3781.8,3781.6,2.38562]
[1717049076961,1.29789222,3781.8,3781.7,0.05980574]
[1717049077184,1.29789222,3781.8,3781.6,2.38562]
[1717049077394,1.29789222,3781.8,3781.7,0.05980574]
[1717049077548,1.29789222,3781.8,3781.6,2.38562]
[1717049077891,1.29789222,3781.8,3781.7,0.05980574]
[1717049078265,1.29789222,3781.8,3781.6,2.38562]
[1717049078452,1.29789222,3781.8,3781.7,0.05980574]
[1717049078752,1.29789222,3781.8,3781.6,2.38562]
[1717049079095,1.29789222,3781.8,3781.7,0.05980574]
[1717049079497,1.29789222,3781.8,3781.6,2.624182]
[1717049079659,0.57226496,3782.3,3781.7,0.05980574]
[1717049079859,1.29789222,3782.2,3782.1,1.58642]
[1717049081557,1.29789222,3782.2,3782.1,1.64614588]
[1717049081961,1.29789222,3782.2,3782.1,2.38542]
[1717049082156,1.29789222,3782.2,3782.1,2.44514588]
[1717049086557,0.57217845,3782.7,3782.1,2.44514588]
[1717049086753,1.29789222,3782.6,3782.1,2.38542]
[1717049086953,1.29789222,3782.6,3782.3,1.58632]
[1717049087652,2.3992,3782.5,3782.3,1.58632]
[1717049087848,1.84789222,3782.4,3782.3,1.58632]
[1717049089365,2.27260144,3782.4,3782.3,1.58632]
[1717049089566,2.4881,3782.3,3781.7,1.58657]
[1717049089765,2.64689222,3782.2,3781.7,1.58657]
[1717049090185,2.9758154,3782.1,3781.7,1.58657]
[1717049090383,1.84789222,3782.0,3781.7,1.58657]
[1717049090752,1.29789222,3781.8,3780.2,2.3184]
[1717049090950,1.29789222,3781.5,3780.2,2.3184]
[1717049091181,2.4518,3781.3,3780.5,0.799]
[1717049091389,1.84789222,3781.2,3780.5,0.799]
[1717049091598,2.4200776,3781.2,3780.7,0.799]
[1717049092289,2.4200776,3781.2,3780.8,0.05593536]
[1717049094301,2.4200776,3781.2,3780.6,0.799]
[1717049094494,2.4200776,3781.2,3780.5,1.58708]
[1717049094658,2.4200776,3781.2,3780.6,0.799]
[1717049094853,2.4200776,3781.2,3780.5,1.58708]
[1717049095294,2.4200776,3781.2,3780.6,0.799]
[1717049096103,2.4200776,3781.2,3780.5,1.58708]
[1717049096286,2.42026607,3781.2,3780.7,0.799]
[1717049097372,1.84789222,3781.2,3780.7,0.799]
[1717049098406,2.03268144,3781.2,3780.5,1.58708]
[1717049098575,2.03268144,3781.2,3780.7,0.799]
[1717049098910,1.29789222,3781.2,3780.9,0.799]
[1717049099504,1.29789222,3781.2,3781.0,1.58688]
[1717049103820,1.29789222,3781.2,3781.1,0.799]
[1717049105810,1.29789222,3781.2,3781.1,0.0563674]
[1717049106515,1.29789222,3781.2,3781.0,1.58688]
[1717049106713,1.29789222,3781.2,3781.1,0.0563674]
[1717049107487,1.29789222,3781.2,3781.0,1.58688]
[1717049107687,1.29789222,3781.2,3781.1,0.0563674]
[1717049108010,1.29789222,3781.2,3781.0,1.58688]
[1717049108309,1.29789222,3781.2,3781.1,0.0563674]
[1717049108784,0.57237054,3781.6,3781.2,1.58678]
[1717049108982,1.29789222,3781.5,3781.4,1.58671]
[1717049109372,10.779175,3782.2,3781.4,1.64300843]
[1717049109570,2.4328815,3781.9,3781.4,1.64300843]
[1717049109770,2.3949,3781.8,3781.4,1.58671]
[1717049109969,1.29789222,3781.7,3781.4,1.58671]
[1717049110185,1.87017605,3781.7,3781.1,0.799]
[1717049110384,1.87017605,3781.7,3780.8,1.58692]
[1717049110581,0.61990653,3781.6,3780.8,2.38592]
[1717049110794,0.55,3781.5,3780.9,0.05629843]
[1717049111019,0.55,3781.5,3780.9,0.85529843]
[1717049111716,0.55,3781.5,3781.0,1.58685]
[1717049112219,0.55,3781.5,3781.1,0.05629843]
[1717049112374,1.29789222,3781.4,3781.1,0.05629843]
[1717049112575,1.29789222,3781.4,3781.0,1.58685]
[1717049112774,1.29789222,3781.4,3781.2,0.05629843]
[1717049113031,1.29789222,3781.4,3781.0,1.58685]
[1717049113236,1.29789222,3781.4,3781.3,0.05629843]
[1717049113375,2.19899945,3781.4,3781.3,0.05629843]
[1717049113574,2.19899945,3781.4,3781.0,1.58685]
[1717049113575,2.4814,3781.3,3781.0,1.58685]
[1717049113775,1.84789222,3781.2,3781.0,1.58685]
[1717049114019,2.42017605,3781.2,3781.0,1.58685]
[1717049114328,0.52526833,3781.1,3781.0,1.58685]
[1717049114636,2.37316055,3781.1,3781.0,1.58685]
[1717049114778,2.94544438,3781.1,3781.0,1.58685]
[1717049115190,2.37316055,3781.1,3780.5,2.38607]
[1717049115376,1.84789222,3781.0,3780.5,1.58707]
[1717049115575,1.84789222,3781.0,3780.5,2.38607]
[1717049116029,2.39057666,3781.0,3780.5,2.38607]
[1717049119639,2.39057666,3781.0,3780.5,1.58707]
[1717049119821,3.0555,3780.9,3780.0,1.58728]
[1717049119987,2.42017605,3780.8,3780.0,1.58728]
[1717049120192,2.42017605,3780.8,3780.1,0.05651631]
[1717049123044,2.42017605,3780.8,3780.0,2.38628]
[1717049123411,2.42017605,3780.8,3780.1,0.05668703]
[1717049123607,1.34656761,3780.7,3780.1,0.05668703]
[1717049123805,3.1497,3780.5,3780.1,0.05668703]
[1717049124007,1.29789222,3780.4,3780.1,0.05668703]
[1717049124265,0.55,3780.3,3780.0,1.58728]
[1717049124423,0.55,3780.3,3780.2,0.05669793]
[1717049124598,2.9941906,3780.3,3779.0,1.58771]
[1717049124806,0.799,3780.0,3779.0,1.58771]
[1717049125011,0.55,3779.9,3779.0,1.58771]
[1717049125214,0.55,3779.9,3779.1,0.05669793]
[1717049125511,2.3209,3779.7,3779.1,0.05669793]
[1717049125728,2.13498222,3779.6,3779.1,0.05669793]
[1717049125903,2.70726605,3779.6,3779.1,0.05669793]
[1717049126107,2.70726605,3779.6,3779.0,1.58771]
[1717049126672,2.70726605,3779.6,3779.1,0.05669793]
[1717049127007,2.70726605,3779.6,3779.0,1.58771]
[1717049127233,0.58271661,3779.5,3779.1,0.05669793]
[1717049127506,1.84789222,3779.4,3779.0,1.58771]
[1717049127952,1.84789222,3779.4,3779.1,0.05669793]
[1717049128115,1.84789222,3779.4,3778.4,1.58794]
[1717049128116,3.79499222,3779.2,3778.4,1.58794]
[1717049128315,0.98449922,3779.1,3778.4,1.58794]
[1717049128531,0.799,3779.0,3778.4,1.58794]
[1717049128721,0.799,3779.0,3778.5,0.05669793]
[1717049128722,0.55,3778.9,3778.5,0.05669793]
[1717049128939,0.55,3778.9,3778.1,0.924792]
[1717049129140,2.4971,3778.8,3778.1,0.125792]
[1717049129457,0.799,3778.5,3778.1,0.125792]
[1717049129688,0.55,3778.4,3778.1,0.125792]
[1717049129816,1.29789222,3778.3,3778.2,0.05669793]
[1717049130153,1.84789222,3778.3,3778.2,0.05774473]
[1717049130925,1.84789222,3778.3,3778.1,0.125792]
[1717049131151,0.55,3778.2,3778.1,0.125792]
[1717049131465,1.84789222,3778.2,3778.1,0.125792]
[1717049132256,3.0,3779.1,3778.2,1.58804]
[1717049132556,1.29789222,3779.0,3778.3,0.13805908]
[1717049133552,5.3942,3779.3,3778.3,0.13805908]
[1717049133553,1.29789222,3778.7,3778.3,0.13805908]
[1717049133709,0.98030922,3778.6,3778.1,0.125792]
[1717049133908,1.29789222,3778.5,3778.1,0.125792]
[1717049134125,0.55,3778.4,3778.1,0.125792]
[1717049134451,1.29789222,3778.3,3778.2,0.13797906]
[1717049134654,1.84789222,3778.3,3778.2,0.13797906]
[1717049135657,1.29789222,3778.3,3778.2,0.13797906]
[1717049139196,4.27569222,3778.3,3778.2,0.13797906]
[1717049139361,4.27569222,3778.3,3778.1,1.713872]
[1717049139362,4.70326144,3778.3,3778.1,1.713872]
[1717049139566,4.70326144,3778.3,3778.1,0.125792]
[1717049139764,1.29789222,3778.2,3778.1,0.125792]
[1717049140001,1.84789222,3778.2,3778.1,0.125792]
[1717049140293,2.84789222,3778.2,3778.1,0.125792]
[1717049140501,6.64772664,3778.2,3778.1,0.125792]
[1717049142972,7.22070401,3778.2,3778.1,0.125792]
[1717049143322,1.0,3776.9,3775.4,1.5892]
[1717049143669,1.58853,3777.1,3775.6,1.58913]
[1717049143876,0.55,3777.0,3776.0,1.58896]
[1717049144387,0.55,3777.2,3776.0,1.58896]
[1717049145309,7.38,3777.3,3776.5,2.257]
[1717049145634,7.38,3777.7,3776.7,1.58867]
[1717049145917,7.38,3777.7,3776.7,3.50867]
[1717049147726,1.84789222,3777.6,3776.9,1.58856]
[1717049151686,12.36,3778.5,3774.5,2.33961]
[1717049151687,7.38,3778.3,3777.2,3.50847]
[1717049151887,7.38,3778.7,3777.6,1.92]
[1717049152150,7.37297454,3778.7,3777.6,1.92]
[1717049152379,7.37297454,3778.7,3777.7,0.492]
[1717049152797,1.29789222,3778.6,3777.7,0.492]
[1717049152925,1.29789222,3778.6,3777.9,1.58817]
[1717049153946,1.29789222,3778.6,3775.3,0.27074813]
[1717049153947,1.0,3776.0,3775.3,0.27074813]
[1717049154214,1.0,3776.0,3775.3,0.005]
[1717049154435,1.0,3775.5,3775.3,0.005]
[1717049154703,1.0,3775.9,3775.3,0.005]
[1717049154869,1.29789222,3775.4,3775.3,0.005]
[1717049155072,1.84789222,3775.4,3775.3,0.005]
[1717049155278,5.27309222,3775.4,3775.3,0.005]
[1717049155619,6.90776135,3775.4,3775.3,0.005]
[1717049155830,8.06933749,3775.4,3775.3,0.005]
[1717049157207,10.85733749,3775.4,3775.3,0.005]
[1717049157423,13.85733749,3775.4,3775.3,0.005]
[1717049158307,1.84989856,3774.4,3774.3,0.125792]
[1717049158458,2.39989856,3774.4,3774.3,0.125792]
[1717049158656,2.79884542,3774.4,3774.3,0.125792]
[1717049161859,1.39989856,3774.4,3774.3,0.125792]
[1717049162185,0.84989856,3774.4,3774.3,0.125792]
[1717049162753,4.22529856,3774.4,3774.3,0.125792]
[1717049162959,10.01329856,3774.4,3774.3,0.125792]
[1717049163413,10.56329856,3774.4,3774.3,0.125792]
[1717049163578,11.33123903,3774.4,3774.3,0.125792]
[1717049164475,3.788,3774.2,3773.3,0.18573]
[1717049164681,8.08589222,3774.2,3773.3,0.18573]
[1717049165609,4.29789222,3774.2,3773.3,0.18573]
[1717049166121,1.29789222,3774.2,3773.3,0.18573]
[1717049166637,1.29789222,3774.2,3773.6,1.58995]
[1717049167206,1.29789222,3774.2,3773.3,0.18573]
[1717049167207,1.52768144,3774.2,3773.3,0.18573]
[1717049167765,4.86568144,3774.2,3773.3,0.18573]
[1717049168017,1.0,3773.9,3773.3,0.18573]
[1717049168325,5.84789222,3773.9,3773.3,0.18573]
[1717049168464,8.63589222,3773.9,3773.3,0.18573]
[1717049168665,9.68143936,3773.9,3773.3,0.18573]
[1717049169913,6.89343936,3773.9,3773.3,0.18573]
[1717049171268,9.68143936,3773.9,3773.3,0.18573]
[1717049171468,1.59063,3772.1,3770.5,0.125792]
[1717049171691,1.29789222,3771.7,3770.5,0.125792]
[1717049171891,0.55,3771.6,3770.7,4.52235734]
[1717049172115,1.84789222,3771.6,3770.7,2.17075734]
[1717049172315,2.84789222,3771.6,3770.7,2.17075734]
[1717049172483,3.13268144,3771.6,3770.7,2.17075734]
[1717049172683,3.13268144,3771.6,3768.9,2.3213]
[1717049172684,1.0,3770.1,3768.9,2.3213]
[1717049172919,1.84789222,3770.0,3769.0,1.59192]
[1717049173086,1.84789222,3770.0,3769.0,1.68397625]
[1717049173419,0.86348381,3770.0,3769.0,1.68397625]
[1717049173717,0.86348381,3770.0,3769.3,1.59177]
[1717049174272,0.86348381,3770.0,3769.5,1.59168]
[1717049174810,0.86348381,3770.0,3769.6,0.09205625]
[1717049175589,0.31348381,3770.0,3769.7,1.59163]
[1717049176006,1.29789222,3770.0,3769.7,1.59163]
[1717049176316,1.0,3771.1,3769.9,1.59155]
[1717049176518,0.31094036,3770.8,3769.9,1.59155]
[1717049176672,0.55,3770.7,3770.2,1.59142]
[1717049176873,1.0,3772.2,3771.1,1.59103]
[1717049177122,1.0,3772.2,3771.2,0.09205625]
[1717049177488,1.29789222,3771.7,3771.2,0.09205625]
[1717049177876,1.0,3771.4,3770.4,1.5913]
[1717049178216,1.0,3771.4,3770.5,0.09298502]
[1717049178651,1.0,3771.4,3770.4,1.5913]
[1717049178789,0.55,3771.3,3770.4,1.5913]
[1717049179122,1.29789222,3770.9,3769.7,1.5916]
[1717049179429,1.29789222,3770.5,3769.8,0.092887]
[1717049179647,0.55,3770.4,3769.8,0.092887]
[1717049179821,0.55,3770.4,3769.7,1.5916]
[1717049179822,1.29789222,3770.3,3769.7,1.5916]
[1717049180203,1.29789222,3770.3,3769.9,1.59153]
[1717049180432,0.55,3770.4,3769.9,1.59153]
[1717049180747,4.22978922,3771.6,3770.3,1.59138]
[1717049181049,1.29789222,3771.4,3770.6,1.59125]
[1717049181562,1.29789222,3771.4,3770.7,0.09311573]
[1717049182409,0.55,3771.3,3770.7,0.09311573]
[1717049182736,1.29789222,3771.2,3770.8,1.59115]
[1717049183136,1.29789222,3771.2,3771.0,1.59108]
[1717049183311,1.0,3772.5,3771.0,1.59108]
[1717049183511,1.29789222,3772.2,3771.0,1.59108]
[1717049183706,1.29789222,3771.6,3771.0,1.59108]
[1717049183909,1.29789222,3771.3,3770.3,1.59135]
[1717049184102,1.29789222,3771.3,3770.4,0.09380126]
[1717049184300,1.0,3770.9,3770.4,0.09380126]
[1717049184525,1.0,3770.9,3769.6,1.59165]
[1717049184526,1.29789222,3770.7,3769.6,1.59165]
[1717049184727,1.29789222,3770.5,3769.7,0.09386296]
[1717049184928,0.73478922,3770.4,3769.7,0.09386296]
[1717049185133,1.29789222,3770.3,3769.7,0.09386296]
[1717049185440,0.55,3770.2,3769.7,0.09386296]
[1717049185597,1.29789222,3770.1,3769.7,0.09386296]
[1717049185802,1.29789222,3770.1,3769.3,1.59177]
[1717049186002,1.29789222,3770.1,3769.8,0.09403359]
[1717049186199,0.55,3770.0,3769.6,1.59167]
[1717049186400,0.55,3770.0,3769.9,0.09414616]
[1717049186614,1.0,3771.3,3770.2,1.5914]
[1717049186861,1.29789222,3771.2,3770.2,1.5914]
[1717049187064,4.33866036,3771.2,3770.2,1.5914]
[1717049187377,4.33866036,3771.2,3767.7,0.55413867]
[1717049187378,1.0,3770.8,3770.3,0.09414616]
[1717049187500,1.0,3770.8,3769.6,1.59167]
[1717049187703,1.29789222,3770.7,3769.9,1.59151]
[1717049188104,0.55,3770.6,3770.0,0.09414616]
[1717049188301,0.55,3770.6,3770.1,1.59146]
[1717049188516,0.55,3770.6,3770.2,0.09414616]
[1717049188701,1.29789222,3770.5,3770.2,0.09414616]
[1717049189041,0.55,3770.4,3770.2,0.09414616]
[1717049189201,1.29789222,3770.3,3770.2,0.09414616]
[1717049189403,1.29789222,3770.3,3770.1,1.59146]
[1717049189404,1.84789222,3770.3,3770.1,1.59146]
[1717049189604,0.55,3770.2,3770.1,1.59146]
[1717049189801,1.84789222,3770.2,3770.1,1.59146]
[1717049191612,2.03268144,3770.2,3769.3,1.59178]
[1717049191815,1.29789222,3770.1,3769.3,1.59178]
[1717049192019,0.55,3770.0,3769.4,0.09414616]
[1717049192212,1.29789222,3769.9,3769.4,0.09414616]
[1717049192444,0.55,3769.8,3768.7,1.59204]
[1717049192644,1.29789222,3769.7,3768.7,1.59204]
[1717049192953,0.55,3769.6,3768.8,0.09414616]
[1717049193119,0.31328999,3769.5,3768.8,0.09414616]
[1717049193314,0.55,3769.4,3768.8,0.09414616]
[1717049193631,1.29789222,3769.3,3768.8,0.09414616]
[1717049193827,1.29789222,3769.3,3768.8,0.56276478]
[1717049194029,1.0,3770.5,3769.4,1.59174]
[1717049194347,1.29789222,3770.4,3769.4,1.59174]
[1717049194548,1.29789222,3770.4,3769.5,0.09460012]
[1717049194921,1.29789222,3770.4,3769.6,1.59166]
[1717049195756,1.29789222,3770.4,3769.7,0.0944294]
[1717049196314,0.55,3770.3,3769.7,0.0944294]
[1717049196557,1.29789222,3770.2,3769.7,0.0944294]
[1717049196719,0.55,3770.1,3769.7,0.0944294]
[1717049196921,1.29789222,3770.0,3769.0,1.5919]
[1717049197139,0.55,3769.9,3769.1,0.09444756]
[1717049197460,1.29789222,3769.8,3769.1,0.30994418]
[1717049197651,1.29789222,3769.7,3769.2,1.59181]
[1717049198254,1.57408438,3770.9,3769.2,1.59181]
[1717049198497,1.29789222,3770.5,3769.5,1.59171]
[1717049198801,1.29789222,3770.0,3769.5,1.59171]
[1717049199002,0.55,3769.9,3769.5,1.59171]
[1717049199174,0.55,3769.9,3769.6,0.09444756]
[1717049199175,1.29789222,3769.8,3769.6,0.09444756]
[1717049199369,2.5911,3771.0,3769.7,1.59163]
[1717049199577,1.0,3770.6,3769.7,1.59163]
[1717049199903,1.29789222,3770.4,3769.7,1.59163]
[1717049200204,1.29789222,3770.3,3769.1,1.59186]
[1717049200557,1.29789222,3770.3,3769.3,1.59178]
[1717049200913,0.55,3770.2,3769.3,1.59178]
[1717049201210,1.29789222,3770.0,3769.4,0.09446572]
[1717049201402,0.55,3769.9,3769.4,0.09446572]
[1717049201629,1.29789222,3769.8,3769.3,1.59178]
[1717049201761,0.55,3769.7,3769.3,1.59178]
[1717049201963,1.29789222,3769.6,3769.3,1.59178]
[1717049202214,0.55,3769.5,3769.3,1.59178]
[1717049202518,1.29789222,3769.4,3769.3,1.59178]
[1717049203089,1.29789222,3769.4,3768.4,2.4275]
[1717049203090,1.29789222,3769.4,3768.7,1.59203]
[1717049203318,0.55,3769.3,3768.7,1.59203]
[1717049203617,1.29789222,3769.2,3768.8,0.09154016]
[1717049205013,0.55,3769.1,3768.8,0.09154016]